[Event "European Online Club-ch-E 2021"]
[Site "Online"]
[Date "2021.03.27"]
[Round "5.15"]
[White "Kukk, Sander"]
[Black "Kocyigit, Buse Naz"]
[Result "0-1"]
[ECO "E60"]
[WhiteElo "2230"]
[BlackElo "2143"]
[Annotator "NA"]
[PlyCount "70"]
[EventDate "2021.03.27"]
[EventType "team-tourn"]
[EventCountry "NET"]
[SourceTitle "playchess.com"]
[Source "ChessBase"]
[SourceQuality "1"]
[TimeControl "900+5"]

1. b3 {[%emt 0:00:00]} Nf6 {[%emt 0:00:07]} 2. Bb2 {[%emt 0:00:02]} g6 {[%emt 0:00:04]} 3. e3 {[%emt 0:00:03]} Bg7 {[%emt 0:00:08]} 4. Nf3 {[%emt 0:00:02]} O-O {[%emt 0:00:08]} 5. d4 {[%emt 0:00:03]} d6 {[%emt 0:00:03]} 6. c4 {[%emt 0:00:04]} e5 {[%emt 0:00:14]} 7. Be2 {[%emt 0:00:23]} e4 {[%emt 0:00:30]} 8. Nfd2 {[%emt 0:00:02]} h5 {[%emt 0:01:00]} 9. h3 {[%emt 0:00:12]} h4 {[%emt 0:00:33]} 10. Nc3 {[%emt 0:00:02]} Re8 {[%emt 0:00:21]} 11. Qc2 {[%emt 0:00:04]} Bf5 {[%emt 0:00:08]} 12. O-O-O {[%emt 0:00:31]} Nc6 {[%emt 0:00:09]} 13. a3 {[%emt 0:00:05]} Qd7 {[%emt 0:04:14]} 14. Nf1 {[%emt 0:01:38]} a5 {[%emt 0:00:43]} 15. g4 {[%emt 0:00:46]} hxg3 {[%emt 0:00:10]} 16. Nxg3 {[%emt 0:00:01]} Bxh3 {[%emt 0:00:25]} 17. Ncxe4 {[%emt 0:00:19]} Nxe4 {[%emt 0:00:17]} 18. Nxe4 {[%emt 0:00:03]} Bg2 {[%emt 0:01:23]} 19. Bd3 {[%emt 0:01:44]} Bxh1 {[%emt 0:00:43]} 20. Rxh1 {[%emt 0:00:00]} a4 {[%emt 0:00:20]} 21. d5 {[%emt 0:00:20]} Ne5 {[%emt 0:00:16]} 22. f4 {[%emt 0:04:52]} axb3 {[%emt 0:00:16]} 23. Qxb3 {[%emt 0:00:09]} Nxd3+ {[%emt 0:00:31]} 24. Qxd3 {[%emt 0:00:00]} Qf5 {[%emt 0:02:02]} 25. Bxg7 {[%emt 0:01:20]} Kxg7 {[%emt 0:00:48]} 26. Qc3+ {[%emt 0:00:46]} Kf8 {[%emt 0:00:08]} 27. Ng5 {[%emt 0:00:12]} Ke7 {[%emt 0:00:36]} 28. Rh7 {[%emt 0:00:45]} Rf8 {[%emt 0:00:13]} 29. Ne6 {[%emt 0:00:47]} Rg8 {[%emt 0:00:31]} 30. Kb2 {[%emt 0:01:18]} g5 {[%emt 0:00:17]} 31. Rh5 {[%emt 0:00:26]} fxe6 {[%emt 0:00:05]} 32. dxe6 {[%emt 0:00:24]} Qf6 {[%emt 0:00:07]} 33. Rh7+ {[%emt 0:00:09]} Kxe6 {[%emt 0:00:01]} 34. f5+ {[%emt 0:00:04]} Kxf5 {[%emt 0:00:02]} 35. e4+ {[%emt 0:00:07]} Ke6 {[%emt 0:00:01]} 0-1

[Event "European Online Club-ch-E 2021"]
[Site "Online"]
[Date "2021.03.27"]
[Round "5.16"]
[White "Ince, Safiye Oyku"]
[Black "Valner, Uku"]
[Result "0-1"]
[ECO "C10"]
[WhiteElo "1995"]
[BlackElo "2296"]
[Annotator "NA"]
[PlyCount "132"]
[EventDate "2021.03.27"]
[EventType "team-tourn"]
[EventCountry "NET"]
[SourceTitle "playchess.com"]
[Source "ChessBase"]
[SourceQuality "1"]
[TimeControl "900+5"]

1. e4 {[%emt 0:00:00]} e6 {[%emt 0:00:03]} 2. d4 {[%emt 0:00:03]} d5 {[%emt 0:00:01]} 3. Nd2 {[%emt 0:00:01]} c6 {[%emt 0:00:04]} 4. Ngf3 {[%emt 0:00:25]} dxe4 {[%emt 0:00:33]} 5. Nxe4 {[%emt 0:00:04]} Nd7 {[%emt 0:00:03]} 6. Bd3 {[%emt 0:00:19]} Ngf6 {[%emt 0:00:03]} 7. Bg5 {[%emt 0:00:08]} Be7 {[%emt 0:00:03]} 8. Nxf6+ {[%emt 0:00:18]} Nxf6 {[%emt 0:00:14]} 9. c3 {[%emt 0:00:47]} Nd5 {[%emt 0:01:20]} 10. Bxe7 {[%emt 0:00:59]} Qxe7 {[%emt 0:00:05]} 11. O-O {[%emt 0:00:05]} O-O {[%emt 0:00:22]} 12. Ne5 {[%emt 0:01:23]} Nf4 {[%emt 0:01:09]} 13. Be4 {[%emt 0:01:13]} c5 {[%emt 0:02:11]} 14. Qf3 {[%emt 0:01:22]} Ng6 {[%emt 0:00:29]} 15. Rad1 {[%emt 0:01:54]} cxd4 {[%emt 0:01:01]} 16. cxd4 {[%emt 0:00:17]} Rb8 {[%emt 0:01:23]} 17. Rfe1 {[%emt 0:00:56]} Rd8 {[%emt 0:02:32]} 18. Bxg6 {[%emt 0:01:52]} hxg6 {[%emt 0:00:00]} 19. d5 {[%emt 0:00:04]} Qf6 {[%emt 0:01:34]} 20. Qg3 {[%emt 0:00:36]} Ra8 {[%emt 0:01:04]} 21. d6 {[%emt 0:01:26]} Bd7 {[%emt 0:00:45]} 22. Rd3 {[%emt 0:00:05]} Bc6 {[%emt 0:00:06]} 23. Nxc6 {[%emt 0:01:38]} bxc6 {[%emt 0:00:00]} 24. d7 {[%emt 0:00:15]} Qxb2 {[%emt 0:00:14]} 25. Qc7 {[%emt 0:00:05]} Qb6 {[%emt 0:00:51]} 26. Qf4 {[%emt 0:00:27]} a5 {[%emt 0:00:20]} 27. Red1 {[%emt 0:00:04]} Ra7 {[%emt 0:00:16]} 28. Qg5 {[%emt 0:00:20]} a4 {[%emt 0:00:23]} 29. Qe7 {[%emt 0:00:07]} Raa8 {[%emt 0:00:07]} 30. Rh3 {[%emt 0:00:04]} Qb5 {[%emt 0:00:07]} 31. g3 {[%emt 0:00:05]} Qf5 {[%emt 0:00:04]} 32. Kg2 {[%emt 0:00:05]} g5 {[%emt 0:00:05]} 33. Qd6 {[%emt 0:00:06]} g6 {[%emt 0:00:05]} 34. f3 {[%emt 0:00:03]} Ra5 {[%emt 0:00:04]} 35. Qxc6 {[%emt 0:00:06]} Rd5 {[%emt 0:00:03]} 36. Rxd5 {[%emt 0:00:03]} Qxd5 {[%emt 0:00:03]} 37. Qxd5 {[%emt 0:00:04]} exd5 {[%emt 0:00:02]} 38. f4 {[%emt 0:00:02]} gxf4 {[%emt 0:00:03]} 39. gxf4 {[%emt 0:00:01]} Rxd7 {[%emt 0:00:00]} 40. Ra3 {[%emt 0:00:02]} Ra7 {[%emt 0:00:02]} 41. Kf2 {[%emt 0:00:02]} f6 {[%emt 0:00:05]} 42. Ke3 {[%emt 0:00:03]} Kf7 {[%emt 0:00:00]} 43. Kd4 {[%emt 0:00:06]} Ke6 {[%emt 0:00:02]} 44. Rg3 {[%emt 0:00:06]} Kf5 {[%emt 0:00:13]} 45. Kxd5 {[%emt 0:00:05]} Rd7+ {[%emt 0:00:02]} 46. Kc4 {[%emt 0:00:12]} Rd2 {[%emt 0:00:00]} 47. Ra3 {[%emt 0:00:11]} Rxh2 {[%emt 0:00:09]} 48. Rxa4 {[%emt 0:00:02]} Kxf4 {[%emt 0:00:01]} 49. Kd5+ {[%emt 0:00:03]} Kg5 {[%emt 0:00:05]} 50. Ra5 {[%emt 0:00:13]} f5 {[%emt 0:00:02]} 51. Ke6 {[%emt 0:00:02]} Rb2 {[%emt 0:00:27]} 52. a4 {[%emt 0:00:08]} Rb6+ {[%emt 0:00:02]} 53. Ke5 {[%emt 0:00:04]} f4 {[%emt 0:00:07]} 54. Ke4+ {[%emt 0:00:04]} Kg4 {[%emt 0:00:02]} 55. Ra8 {[%emt 0:00:08]} Re6+ {[%emt 0:00:04]} 56. Kd5 {[%emt 0:00:03]} Re1 {[%emt 0:00:03]} 57. Rg8 {[%emt 0:00:02]} g5 {[%emt 0:00:02]} 58. a5 {[%emt 0:00:02]} Ra1 {[%emt 0:00:02]} 59. Ra8 {[%emt 0:00:03]} f3 {[%emt 0:00:01]} 60. Rf8 {[%emt 0:00:12]} Rxa5+ {[%emt 0:00:04]} 61. Ke4 {[%emt 0:00:01]} Ra4+ {[%emt 0:00:04]} 62. Ke3 {[%emt 0:00:01]} Ra3+ {[%emt 0:00:02]} 63. Kf2 {[%emt 0:00:02]} Ra2+ {[%emt 0:00:01]} 64. Ke3 {[%emt 0:00:01]} Re2+ {[%emt 0:00:02]} 65. Kd3 {[%emt 0:00:04]} Re7 {[%emt 0:00:02]} 66. Kd2 {[%emt 0:00:03]} Kg3 {[%emt 0:00:02]} 0-1

[Event "European Online Club-ch-E 2021"]
[Site "Online"]
[Date "2021.03.27"]
[Round "5.17"]
[White "Dedebas, Emre Emin"]
[Black "Kanakaris, Georgios"]
[Result "1/2-1/2"]
[ECO "D02"]
[WhiteElo "2335"]
[BlackElo "2400"]
[Annotator "NA"]
[PlyCount "61"]
[EventDate "2021.03.27"]
[EventType "team-tourn"]
[EventCountry "NET"]
[SourceTitle "playchess.com"]
[Source "ChessBase"]
[SourceQuality "1"]
[TimeControl "900+5"]

1. d4 {[%emt 0:00:00]} Nf6 {[%emt 0:00:06]} 2. Bf4 {[%emt 0:00:17]} e6 {[%emt 0:00:03]} 3. e3 {[%emt 0:00:04]} c5 {[%emt 0:00:14]} 4. c3 {[%emt 0:00:24]} Nc6 {[%emt 0:00:17]} 5. Nd2 {[%emt 0:00:09]} d5 {[%emt 0:00:05]} 6. Ngf3 {[%emt 0:00:03]} cxd4 {[%emt 0:00:24]} 7. exd4 {[%emt 0:00:04]} Nh5 {[%emt 0:00:03]} 8. Be3 {[%emt 0:01:16]} Bd6 {[%emt 0:00:09]} 9. Ne5 {[%emt 0:00:36]} g6 {[%emt 0:00:45]} 10. Be2 {[%emt 0:00:51]} Ng7 {[%emt 0:01:14]} 11. Nd3 {[%emt 0:00:06]} f6 {[%emt 0:04:25]} 12. f4 {[%emt 0:05:28]} Nf5 {[%emt 0:00:52]} 13. Bf2 {[%emt 0:00:04]} h5 {[%emt 0:00:03]} 14. Bf3 {[%emt 0:00:54]} Qc7 {[%emt 0:00:26]} 15. g3 {[%emt 0:00:11]} Bd7 {[%emt 0:00:12]} 16. Nb3 {[%emt 0:01:42]} b6 {[%emt 0:03:27]} 17. Qe2 {[%emt 0:01:24]} Kf7 {[%emt 0:00:22]} 18. O-O {[%emt 0:00:21]} a5 {[%emt 0:00:08]} 19. Rac1 {[%emt 0:00:44]} a4 {[%emt 0:00:24]} 20. Nd2 {[%emt 0:00:03]} Na5 {[%emt 0:00:06]} 21. Rfe1 {[%emt 0:01:07]} Rae8 {[%emt 0:00:08]} 22. b3 {[%emt 0:00:02]} Ba3 {[%emt 0:00:06]} 23. Rc2 {[%emt 0:00:14]} Bb5 {[%emt 0:00:27]} 24. c4 {[%emt 0:00:22]} Ba6 {[%emt 0:00:10]} 25. Nb1 {[%emt 0:00:12]} axb3 {[%emt 0:00:26]} 26. axb3 {[%emt 0:00:02]} Nxb3 {[%emt 0:00:49]} 27. cxd5 {[%emt 0:00:11]} Qd6 {[%emt 0:00:02]} 28. dxe6+ {[%emt 0:00:07]} Kg7 {[%emt 0:00:24]} 29. Qe4 {[%emt 0:00:19]} Nbxd4 {[%emt 0:00:10]} 30. Rd2 {[%emt 0:00:01]} Nxf3+ {[%emt 0:00:15]} 31. Qxf3 {[%emt 0:00:02]} 1/2-1/2

[Event "European Online Club-ch-E 2021"]
[Site "Online"]
[Date "2021.03.27"]
[Round "5.18"]
[White "Stefanou, Dimitrios"]
[Black "Ozenir, Ekin Baris"]
[Result "0-1"]
[ECO "A27"]
[WhiteElo "2099"]
[BlackElo "2309"]
[Annotator "NA"]
[PlyCount "92"]
[EventDate "2021.03.27"]
[EventType "team-tourn"]
[EventCountry "NET"]
[SourceTitle "playchess.com"]
[Source "ChessBase"]
[SourceQuality "1"]
[TimeControl "900+5"]

1. c4 {[%emt 0:00:00]} e5 {[%emt 0:00:09]} 2. Nc3 {[%emt 0:00:07]} Nc6 {[%emt 0:00:05]} 3. Nf3 {[%emt 0:00:04]} g6 {[%emt 0:00:24]} 4. d4 {[%emt 0:00:04]} exd4 {[%emt 0:01:01]} 5. Nxd4 {[%emt 0:00:03]} Bg7 {[%emt 0:00:08]} 6. Nxc6 {[%emt 0:00:03]} bxc6 {[%emt 0:00:03]} 7. g3 {[%emt 0:00:02]} Ne7 {[%emt 0:00:10]} 8. Bg2 {[%emt 0:00:08]} O-O {[%emt 0:00:04]} 9. O-O {[%emt 0:00:06]} d6 {[%emt 0:00:33]} 10. Bg5 {[%emt 0:00:10]} Bd7 {[%emt 0:01:31]} 11. Qd2 {[%emt 0:00:10]} f6 {[%emt 0:01:47]} 12. Bh6 {[%emt 0:01:45]} Rb8 {[%emt 0:00:27]} 13. Bxg7 {[%emt 0:00:18]} Kxg7 {[%emt 0:00:02]} 14. Rad1 {[%emt 0:00:08]} c5 {[%emt 0:00:21]} 15. b3 {[%emt 0:00:59]} Qe8 {[%emt 0:01:29]} 16. e3 {[%emt 0:02:45]} Bc6 {[%emt 0:00:59]} 17. Nd5 {[%emt 0:00:21]} Nxd5 {[%emt 0:00:34]} 18. cxd5 {[%emt 0:00:08]} Bd7 {[%emt 0:01:11]} 19. Rfe1 {[%emt 0:02:00]} Rb4 {[%emt 0:00:32]} 20. Rb1 {[%emt 0:01:52]} Qb8 {[%emt 0:01:06]} 21. Qc3 {[%emt 0:00:31]} Re8 {[%emt 0:00:50]} 22. e4 {[%emt 0:00:34]} Rd4 {[%emt 0:01:02]} 23. a3 {[%emt 0:00:12]} Qb6 {[%emt 0:00:50]} 24. b4 {[%emt 0:01:21]} Rb8 {[%emt 0:00:46]} 25. Rbc1 {[%emt 0:01:39]} cxb4 {[%emt 0:00:32]} 26. Qxc7 {[%emt 0:00:02]} Rb7 {[%emt 0:00:06]} 27. Qxb6 {[%emt 0:00:03]} axb6 {[%emt 0:00:01]} 28. axb4 {[%emt 0:00:07]} Rxb4 {[%emt 0:00:03]} 29. Re2 {[%emt 0:00:40]} b5 {[%emt 0:00:26]} 30. Rec2 {[%emt 0:00:23]} Kh6 {[%emt 0:00:05]} 31. f4 {[%emt 0:00:06]} Ra4 {[%emt 0:00:07]} 32. Kf2 {[%emt 0:00:23]} b4 {[%emt 0:00:02]} 33. Rb2 {[%emt 0:00:09]} b3 {[%emt 0:00:03]} 34. Ke3 {[%emt 0:00:14]} Rab4 {[%emt 0:00:08]} 35. Rc3 {[%emt 0:00:03]} Ba4 {[%emt 0:00:03]} 36. Bf3 {[%emt 0:00:03]} R7b5 {[%emt 0:00:06]} 37. Bd1 {[%emt 0:00:05]} Rc5 {[%emt 0:00:05]} 38. Rxc5 {[%emt 0:00:03]} dxc5 {[%emt 0:00:02]} 39. e5 {[%emt 0:00:14]} fxe5 {[%emt 0:00:01]} 40. fxe5 {[%emt 0:00:02]} Kg5 {[%emt 0:00:02]} 41. d6 {[%emt 0:00:03]} Kf5 {[%emt 0:00:04]} 42. Bxb3 {[%emt 0:00:10]} Kxe5 {[%emt 0:00:17]} 43. d7 {[%emt 0:00:05]} Bxd7 {[%emt 0:00:02]} 44. Rb1 {[%emt 0:00:03]} Bf5 {[%emt 0:00:03]} 45. Rc1 {[%emt 0:00:09]} Rxb3+ {[%emt 0:00:02]} 46. Kf2 {[%emt 0:00:02]} Kd4 {[%emt 0:00:02]} 0-1

[Event "European Online Club-ch-E 2021"]
[Site "Online"]
[Date "2021.03.27"]
[Round "5.19"]
[White "Tarlabasi, Emirhan"]
[Black "Apostolakakis, Konstantinos"]
[Result "1-0"]
[ECO "D38"]
[WhiteElo "2301"]
[BlackElo "2074"]
[Annotator "NA"]
[PlyCount "65"]
[EventDate "2021.03.27"]
[EventType "team-tourn"]
[EventCountry "NET"]
[SourceTitle "playchess.com"]
[Source "ChessBase"]
[SourceQuality "1"]
[TimeControl "900+5"]

1. d4 {[%emt 0:00:00]} Nf6 {[%emt 0:00:06]} 2. c4 {[%emt 0:00:04]} e6 {[%emt 0:00:08]} 3. Nf3 {[%emt 0:00:02]} Bb4+ {[%emt 0:00:09]} 4. Nc3 {[%emt 0:00:21]} d5 {[%emt 0:02:04]} 5. Qa4+ {[%emt 0:01:03]} Nc6 {[%emt 0:00:05]} 6. e3 {[%emt 0:00:16]} O-O {[%emt 0:00:08]} 7. Bd2 {[%emt 0:00:32]} Re8 {[%emt 0:00:44]} 8. Be2 {[%emt 0:01:17]} a6 {[%emt 0:01:05]} 9. a3 {[%emt 0:01:37]} Bxc3 {[%emt 0:00:27]} 10. Bxc3 {[%emt 0:00:13]} Ne4 {[%emt 0:00:05]} 11. O-O {[%emt 0:00:22]} Nxc3 {[%emt 0:02:15]} 12. bxc3 {[%emt 0:00:04]} Qf6 {[%emt 0:00:10]} 13. Rab1 {[%emt 0:01:09]} Rd8 {[%emt 0:03:00]} 14. Rfd1 {[%emt 0:00:48]} Rb8 {[%emt 0:00:17]} 15. Qc2 {[%emt 0:03:08]} h6 {[%emt 0:03:04]} 16. a4 {[%emt 0:00:52]} Bd7 {[%emt 0:00:28]} 17. Qa2 {[%emt 0:01:23]} Bc8 {[%emt 0:00:20]} 18. h3 {[%emt 0:01:09]} g5 {[%emt 0:00:30]} 19. Nh2 {[%emt 0:00:38]} Qg6 {[%emt 0:00:24]} 20. Bf3 {[%emt 0:00:07]} Ne7 {[%emt 0:00:12]} 21. Qe2 {[%emt 0:00:14]} c6 {[%emt 0:00:07]} 22. e4 {[%emt 0:00:16]} dxe4 {[%emt 0:00:14]} 23. Bxe4 {[%emt 0:00:03]} f5 {[%emt 0:00:02]} 24. Bc2 {[%emt 0:00:10]} Re8 {[%emt 0:00:15]} 25. Qe5 {[%emt 0:00:41]} Bd7 {[%emt 0:00:11]} 26. Ng4 {[%emt 0:00:10]} Rf8 {[%emt 0:00:09]} 27. Qd6 {[%emt 0:00:11]} Qe8 {[%emt 0:00:09]} 28. Ne5 {[%emt 0:00:06]} Rd8 {[%emt 0:00:04]} 29. Rxb7 {[%emt 0:00:13]} Nc8 {[%emt 0:00:14]} 30. Qc7 {[%emt 0:00:12]} Rf6 {[%emt 0:00:17]} 31. c5 {[%emt 0:00:04]} Rf8 {[%emt 0:00:07]} 32. Nxd7 {[%emt 0:00:03]} Rf7 {[%emt 0:00:02]} 33. Nf6+ {[%emt 0:00:02]} 1-0

[Event "European Online Club-ch-E 2021"]
[Site "Online"]
[Date "2021.03.27"]
[Round "5.20"]
[White "Zisiadis, Dimitrios"]
[Black "Dolgun, Can"]
[Result "0-1"]
[ECO "D03"]
[WhiteElo "2042"]
[BlackElo "2133"]
[Annotator "NA"]
[PlyCount "136"]
[EventDate "2021.03.27"]
[EventType "team-tourn"]
[EventCountry "NET"]
[SourceTitle "playchess.com"]
[Source "ChessBase"]
[SourceQuality "1"]
[TimeControl "900+5"]

1. d4 {[%emt 0:00:00]} Nf6 {[%emt 0:00:02]} 2. Nf3 {[%emt 0:00:09]} g6 {[%emt 0:00:03]} 3. Bg5 {[%emt 0:00:08]} Bg7 {[%emt 0:00:02]} 4. Nbd2 {[%emt 0:00:04]} d5 {[%emt 0:00:06]} 5. c3 {[%emt 0:00:12]} O-O {[%emt 0:00:24]} 6. e3 {[%emt 0:00:04]} c5 {[%emt 0:00:29]} 7. Be2 {[%emt 0:00:13]} Nc6 {[%emt 0:00:25]} 8. O-O {[%emt 0:00:17]} Bf5 {[%emt 0:00:42]} 9. dxc5 {[%emt 0:01:56]} e5 {[%emt 0:01:18]} 10. Qa4 {[%emt 0:02:27]} h6 {[%emt 0:01:47]} 11. Bh4 {[%emt 0:00:21]} g5 {[%emt 0:02:03]} 12. Bg3 {[%emt 0:00:21]} Qe8 {[%emt 0:00:54]} 13. b4 {[%emt 0:02:01]} Nd4 {[%emt 0:02:06]} 14. Qd1 {[%emt 0:00:55]} Bc2 {[%emt 0:00:36]} 15. Qe1 {[%emt 0:00:15]} Nxe2+ {[%emt 0:00:09]} 16. Qxe2 {[%emt 0:00:05]} e4 {[%emt 0:00:02]} 17. Ne1 {[%emt 0:02:00]} Ba4 {[%emt 0:00:11]} 18. Bd6 {[%emt 0:01:14]} Bb5 {[%emt 0:00:05]} 19. Qd1 {[%emt 0:00:52]} Bxf1 {[%emt 0:00:41]} 20. Nxf1 {[%emt 0:00:17]} a5 {[%emt 0:01:47]} 21. Bxf8 {[%emt 0:00:48]} Kxf8 {[%emt 0:00:12]} 22. a3 {[%emt 0:00:54]} Qe5 {[%emt 0:00:14]} 23. Rc1 {[%emt 0:00:26]} Ne8 {[%emt 0:00:34]} 24. Qb3 {[%emt 0:00:18]} axb4 {[%emt 0:00:13]} 25. axb4 {[%emt 0:00:13]} Nc7 {[%emt 0:00:06]} 26. c4 {[%emt 0:00:14]} dxc4 {[%emt 0:00:08]} 27. Qxc4 {[%emt 0:00:03]} Nd5 {[%emt 0:00:32]} 28. Nc2 {[%emt 0:00:14]} Qb2 {[%emt 0:00:26]} 29. Nd4 {[%emt 0:00:12]} Nxb4 {[%emt 0:00:06]} 30. Re1 {[%emt 0:00:08]} Nd3 {[%emt 0:00:04]} 31. Re2 {[%emt 0:00:03]} Qb4 {[%emt 0:00:06]} 32. Qxb4 {[%emt 0:00:06]} Nxb4 {[%emt 0:00:02]} 33. g4 {[%emt 0:00:03]} Nd3 {[%emt 0:00:05]} 34. Rc2 {[%emt 0:00:06]} Rc8 {[%emt 0:00:05]} 35. Ng3 {[%emt 0:00:05]} Rxc5 {[%emt 0:00:04]} 36. Rxc5 {[%emt 0:00:08]} Nxc5 {[%emt 0:00:02]} 37. Ndf5 {[%emt 0:00:02]} b5 {[%emt 0:00:04]} 38. Nd6 {[%emt 0:00:03]} b4 {[%emt 0:00:08]} 39. Ngxe4 {[%emt 0:00:02]} b3 {[%emt 0:00:09]} 40. Nd2 {[%emt 0:00:07]} Bc3 {[%emt 0:00:09]} 41. Nb1 {[%emt 0:00:04]} Bb4 {[%emt 0:00:09]} 42. Nc4 {[%emt 0:00:02]} Ke7 {[%emt 0:00:12]} 43. Kf1 {[%emt 0:00:02]} Ke6 {[%emt 0:00:04]} 44. Ke2 {[%emt 0:00:08]} Kd5 {[%emt 0:00:02]} 45. Nb6+ {[%emt 0:00:05]} Kc6 {[%emt 0:00:06]} 46. Nc4 {[%emt 0:00:02]} Kb5 {[%emt 0:00:02]} 47. Nb2 {[%emt 0:00:04]} Ne4 {[%emt 0:00:25]} 48. f4 {[%emt 0:00:19]} Nc3+ {[%emt 0:00:07]} 49. Nxc3+ {[%emt 0:00:02]} Bxc3 {[%emt 0:00:01]} 50. Nd3 {[%emt 0:00:02]} b2 {[%emt 0:00:05]} 51. Nxb2 {[%emt 0:00:02]} Bxb2 {[%emt 0:00:01]} 52. fxg5 {[%emt 0:00:01]} hxg5 {[%emt 0:00:02]} 53. Kd3 {[%emt 0:00:01]} Kc5 {[%emt 0:00:14]} 54. Ke4 {[%emt 0:00:02]} Kd6 {[%emt 0:00:03]} 55. Kf5 {[%emt 0:00:02]} f6 {[%emt 0:00:04]} 56. e4 {[%emt 0:00:03]} Be5 {[%emt 0:00:05]} 57. h3 {[%emt 0:00:01]} Ke7 {[%emt 0:00:04]} 58. Kg6 {[%emt 0:00:02]} Ke6 {[%emt 0:00:03]} 59. Kh5 {[%emt 0:00:01]} Bg3 {[%emt 0:00:01]} 60. Kg6 {[%emt 0:00:01]} Ke5 {[%emt 0:00:02]} 61. Kg7 {[%emt 0:00:02]} Bh4 {[%emt 0:00:03]} 62. Kg6 {[%emt 0:00:04]} Kxe4 {[%emt 0:00:11]} 63. Kxf6 {[%emt 0:00:02]} Kf4 {[%emt 0:00:03]} 64. Ke6 {[%emt 0:00:04]} Kg3 {[%emt 0:00:03]} 65. Ke5 {[%emt 0:00:03]} Kxh3 {[%emt 0:00:04]} 66. Kf5 {[%emt 0:00:02]} Kg3 {[%emt 0:00:03]} 67. Ke4 {[%emt 0:00:01]} Kxg4 {[%emt 0:00:01]} 68. Ke3 {[%emt 0:00:01]} Kg3 {[%emt 0:00:02]} 0-1

[Event "European Online Club-ch-E 2021"]
[Site "Online"]
[Date "2021.03.27"]
[Round "6.1"]
[White "Helie, Marc"]
[Black "Stefanou, Dimitrios"]
[Result "1/2-1/2"]
[ECO "A64"]
[WhiteElo "2083"]
[BlackElo "2099"]
[Annotator "NA"]
[PlyCount "36"]
[EventDate "2021.03.27"]
[EventType "team-tourn"]
[EventCountry "NET"]
[SourceTitle "playchess.com"]
[Source "ChessBase"]
[SourceQuality "1"]
[TimeControl "900+5"]

1. d4 {[%emt 0:00:00]} Nf6 {[%emt 0:00:04]} 2. c4 {[%emt 0:00:06]} e6 {[%emt 0:00:05]} 3. Nc3 {[%emt 0:00:06]} c5 {[%emt 0:00:23]} 4. d5 {[%emt 0:00:10]} exd5 {[%emt 0:00:03]} 5. cxd5 {[%emt 0:00:03]} d6 {[%emt 0:00:03]} 6. g3 {[%emt 0:00:11]} g6 {[%emt 0:00:04]} 7. Bg2 {[%emt 0:00:10]} Bg7 {[%emt 0:00:03]} 8. Nf3 {[%emt 0:00:07]} O-O {[%emt 0:00:04]} 9. O-O {[%emt 0:00:05]} Re8 {[%emt 0:00:03]} 10. Nd2 {[%emt 0:00:07]} a6 {[%emt 0:00:20]} 11. a4 {[%emt 0:00:07]} Nbd7 {[%emt 0:00:40]} 12. Nc4 {[%emt 0:00:15]} Nb6 {[%emt 0:01:25]} 13. Na3 {[%emt 0:00:41]} Nbd7 {[%emt 0:00:37]} 14. h3 {[%emt 0:00:22]} Qc7 {[%emt 0:02:36]} 15. Nc4 {[%emt 0:04:11]} Ne5 {[%emt 0:00:42]} 16. Na3 {[%emt 0:01:20]} Ned7 {[%emt 0:00:49]} 17. Nc4 {[%emt 0:00:13]} Ne5 {[%emt 0:00:03]} 18. Na3 {[%emt 0:00:04]} Ned7 {[%emt 0:00:03]} 1/2-1/2

[Event "European Online Club-ch-E 2021"]
[Site "Online"]
[Date "2021.03.27"]
[Round "6.2"]
[White "Koutlas, Nikolaos"]
[Black "Barbini, Denis"]
[Result "1-0"]
[ECO "B09"]
[WhiteElo "2078"]
[BlackElo "2035"]
[Annotator "NA"]
[PlyCount "87"]
[EventDate "2021.03.27"]
[EventType "team-tourn"]
[EventCountry "NET"]
[SourceTitle "playchess.com"]
[Source "ChessBase"]
[SourceQuality "1"]
[TimeControl "900+5"]

1. e4 {[%emt 0:00:00]} d6 {[%emt 0:00:03]} 2. d4 {[%emt 0:00:04]} Nf6 {[%emt 0:00:03]} 3. Nc3 {[%emt 0:00:02]} g6 {[%emt 0:00:06]} 4. f4 {[%emt 0:00:02]} Bg7 {[%emt 0:00:06]} 5. Nf3 {[%emt 0:00:25]} c5 {[%emt 0:00:04]} 6. Bb5+ {[%emt 0:00:05]} Bd7 {[%emt 0:00:02]} 7. e5 {[%emt 0:00:06]} Ng4 {[%emt 0:00:03]} 8. Bxd7+ {[%emt 0:00:05]} Qxd7 {[%emt 0:00:20]} 9. h3 {[%emt 0:00:04]} cxd4 {[%emt 0:00:08]} 10. Qxd4 {[%emt 0:00:04]} Nh6 {[%emt 0:01:10]} 11. Qf2 {[%emt 0:00:13]} O-O {[%emt 0:01:33]} 12. O-O {[%emt 0:01:30]} dxe5 {[%emt 0:02:22]} 13. fxe5 {[%emt 0:02:05]} Nc6 {[%emt 0:00:12]} 14. Bf4 {[%emt 0:00:13]} f6 {[%emt 0:00:28]} 15. Rad1 {[%emt 0:00:43]} Qf5 {[%emt 0:00:42]} 16. Qe3 {[%emt 0:02:07]} Nf7 {[%emt 0:00:37]} 17. g4 {[%emt 0:00:54]} Qe6 {[%emt 0:00:43]} 18. exf6 {[%emt 0:00:15]} Qxe3+ {[%emt 0:00:02]} 19. Bxe3 {[%emt 0:00:00]} exf6 {[%emt 0:00:43]} 20. Rd7 {[%emt 0:00:18]} b6 {[%emt 0:00:24]} 21. Rc7 {[%emt 0:01:34]} Rac8 {[%emt 0:00:22]} 22. Rxc8 {[%emt 0:00:06]} Rxc8 {[%emt 0:00:03]} 23. Nd5 {[%emt 0:00:07]} Rd8 {[%emt 0:01:08]} 24. c4 {[%emt 0:00:11]} Nfe5 {[%emt 0:00:27]} 25. Nxe5 {[%emt 0:00:41]} Nxe5 {[%emt 0:00:02]} 26. b3 {[%emt 0:00:06]} b5 {[%emt 0:01:36]} 27. Rd1 {[%emt 0:02:02]} Rb8 {[%emt 0:01:36]} 28. Bxa7 {[%emt 0:00:57]} Ra8 {[%emt 0:00:05]} 29. cxb5 {[%emt 0:00:25]} Rxa7 {[%emt 0:00:05]} 30. b6 {[%emt 0:00:05]} Rb7 {[%emt 0:00:36]} 31. Rc1 {[%emt 0:00:47]} Rb8 {[%emt 0:01:23]} 32. Rc7 {[%emt 0:00:16]} f5 {[%emt 0:00:13]} 33. b7 {[%emt 0:00:20]} Nf3+ {[%emt 0:00:07]} 34. Kf2 {[%emt 0:00:17]} Be5 {[%emt 0:00:05]} 35. Rc8+ {[%emt 0:00:24]} Kf7 {[%emt 0:00:01]} 36. Rxb8 {[%emt 0:00:01]} Bxb8 {[%emt 0:00:04]} 37. Kxf3 {[%emt 0:00:01]} fxg4+ {[%emt 0:00:06]} 38. hxg4 {[%emt 0:00:04]} Ke6 {[%emt 0:00:01]} 39. Nb4 {[%emt 0:00:01]} Kd6 {[%emt 0:00:08]} 40. Na6 {[%emt 0:00:02]} Ba7 {[%emt 0:00:07]} 41. b8=Q+ {[%emt 0:00:02]} Bxb8 {[%emt 0:00:01]} 42. Nxb8 {[%emt 0:00:00]} Kc5 {[%emt 0:00:02]} 43. g5 {[%emt 0:00:03]} Kb4 {[%emt 0:00:02]} 44. Nc6+ {[%emt 0:00:01]} 1-0